fUSD/lending_fUSD_20260221
["ID","MTS","AMOUNT","RATE_DAILY","PERIOD"]
[406234288,1771647040940,-619.14973919,0.00017973,2]
[406234289,1771647040951,-500.0,0.00017973,2]
[406234290,1771647040961,-500.0,0.00017973,2]
[406234291,1771647040970,-500.0,0.00017973,2]
[406234292,1771647040979,-500.0,0.00017973,2]
[406234293,1771647040989,-500.0,0.00017973,2]
[406234294,1771647040999,-500.0,0.00017973,2]
[406234295,1771647041009,-500.0,0.00017973,2]
[406234296,1771647041019,-500.0,0.00017973,2]
[406234297,1771647041028,-533.24438323,0.00017973,2]
[406234298,1771647041037,-500.0,0.00017973,2]
[406234299,1771647041047,-500.0,0.00017973,2]
[406234300,1771647041056,-500.61890961,0.00017973,2]
[406234301,1771647041065,-502.50033053,0.00017973,2]
[406234302,1771647041075,-500.0,0.00017973,2]
[406234303,1771647041084,-500.0,0.00017973,2]
[406234304,1771647041094,-500.0,0.00017973,2]
[406234305,1771647041103,-500.0,0.00017973,2]
[406234306,1771647041114,-500.0,0.00017973,2]
[406234307,1771647041123,-500.98392686,0.00017973,2]
[406234308,1771647041133,-500.39813374,0.00017973,2]
[406234309,1771647041142,-873.04835075,0.0001799,2]
[406234310,1771647041151,-384.27617011,0.00017999,2]
[406234311,1771647041161,-352.10495522,0.00017999,2]
[406234312,1771647041171,-300.0,0.00017999,2]
[406234313,1771647041180,-666.0,0.00017999,2]
[406234314,1771647041190,-296.5196054,0.00017999,2]
[406234315,1771647041199,-2173131.6043111,0.00018,2]
[406234316,1771647041208,-274607.22771303,0.00018,2]
[406234317,1771647041218,-151.16721438,0.00018,2]
[406234318,1771647041227,-151.0,0.00018,2]
[406234319,1771647041236,-151.0,0.00018,2]
[406234320,1771647041245,-207.546993,0.00018,2]
[406234321,1771647041254,-151.0,0.00018,2]
[406234322,1771647041263,-889.65538363,0.00018,2]
[406234323,1771647041274,-151.0,0.00018,2]
[406234324,1771647041283,-262.80379203,0.00018006,2]
[406234325,1771647041292,-168.0,0.00018025,2]
[406234326,1771647041304,-1997.0,0.00018029,2]
[406234327,1771647041313,-1102.0,0.00018062,2]
[406234328,1771647041322,-388.44189035,0.00018089,2]
[406234329,1771647041332,-166.66,0.00018101,2]
[406234330,1771647041341,-1997.0,0.00018141,2]
[406234331,1771647041350,-1997.0,0.00018166,2]
[406234332,1771647041359,-1102.0,0.00018176,2]
[406234333,1771647041368,-1166.0,0.00018212,2]
[406234334,1771647041377,-1212.675,0.00018411,2]
[406234335,1771647041387,-5976.0,0.00018411,2]
[406234336,1771647041396,-340.999,0.00018411,2]
[406234337,1771647041406,-501.32982636,0.00018421,2]
[406234338,1771647041417,-502.9045905,0.00018421,2]
[406234339,1771647041429,-1001.90174129,0.00018421,2]
[406234340,1771647041439,-1004.36409669,0.00018421,2]
[406234341,1771647041448,-500.5604227,0.00018421,2]
[406234342,1771647041458,-501.3064784,0.00018421,2]
[406234343,1771647041467,-1001.34299668,0.00018421,2]
[406234344,1771647041477,-884.02727822,0.00018421,2]
[406234345,1771647041486,-587.0,0.00018425,2]
[406234346,1771647041495,-1895.68,0.00018471,2]
[406234347,1771647041505,-27709.67182438,0.00018476,2]
[406234348,1771647041514,-1997.0,0.00018519,2]
[406234349,1771647041527,-2351.0,0.0001861,2]
[406234350,1771647041539,-1166.0,0.00018613,2]
[406234351,1771647041549,-1109.0,0.0001862,2]
[406234352,1771647041565,-166.66,0.00018629,2]
[406234353,1771647041579,-1166.0,0.00018648,2]
[406234354,1771647041589,-1166.0,0.00018652,2]
[406234355,1771647041599,-1166.0,0.00018695,2]
[406234356,1771647041609,-544.28,0.00018725,2]
[406234357,1771647041618,-1166.0,0.00018754,2]
[406234358,1771647041627,-700.0,0.00018819,2]
[406234359,1771647041638,-1166.0,0.00018854,2]
[406234360,1771647041647,-2587.0,0.000189,2]
[406234361,1771647041657,-800.0,0.00018904,2]
[406234362,1771647041667,-88272.87275971,0.00019,2]
[406234363,1771647041676,-169.73979688,0.00019,2]
[406234364,1771647041685,-1997.0,0.00019006,2]
[406234365,1771647041695,-1166.0,0.00019049,2]
[406234366,1771647041704,-1997.0,0.00019274,2]
[406234367,1771647041714,-1166.0,0.0001932,2]
[406234368,1771647041723,-1166.0,0.00019326,2]
[406234369,1771647041732,-1166.0,0.00019332,2]
[406234370,1771647041743,-1109.0,0.0001935,2]
[406234371,1771647041753,-1166.0,0.00019398,2]
[406234372,1771647041763,-1166.0,0.00019533,2]
[406234373,1771647041772,-169.92,0.00019537,2]
[406234374,1771647041781,-173.74378417,0.00019641,2]
[406234375,1771647041790,-1000.0,0.00019797,2]
[406234376,1771647041800,-2000.0,0.000198,2]
[406234377,1771647041809,-1422.04556703,0.0001986,2]
[406234378,1771647041818,-2000.0,0.000201,2]
[406234379,1771647041827,-793.0,0.00020157,2]
[406234380,1771647041836,-2000.0,0.000204,2]
[406234381,1771647041846,-3292.0,0.00020462,2]
[406234382,1771647041855,-277.91,0.00020467,30]
[406234383,1771647041864,-1600.0,0.000209,7]
[406234384,1771647041873,-544.28,0.00021066,2]
[406234385,1771647041882,-2643.59,0.00021074,2]
[406234386,1771647041892,-107276.7293629,0.0002118,2]
[406234387,1771647041901,-27709.67182438,0.00021255,2]
[406234388,1771647041910,-150.0,0.00021279,2]
[406234389,1771647041919,-150.0,0.00021279,2]
[406234390,1771647041928,-173.628,0.00021279,2]
[406234391,1771647041937,-150.135,0.00021279,2]
[406234392,1771647041946,-150.153,0.00021279,2]
[406234393,1771647041954,-293.505,0.00021279,2]
[406234394,1771647041963,-150.068,0.00021279,2]
[406234395,1771647041973,-150.0,0.00021279,2]
[406234396,1771647041981,-267.735,0.00021279,2]
[406234397,1771647041990,-150.135,0.00021279,2]
[406234398,1771647041999,-150.0,0.00021279,2]
[406234399,1771647042008,-1039.0,0.00021279,2]
[406234400,1771647042017,-3538.724,0.00021279,2]
[406234401,1771647042026,-618.0,0.00021279,2]
[406234402,1771647042035,-1277.879,0.00021279,2]
[406234403,1771647042044,-150.268,0.00021279,2]
[406234404,1771647042054,-29337.3172295,0.00021347,2]
[406234405,1771647042063,-216.97896439,0.00021406,2]
[406234406,1771647042072,-1209.0,0.00021411,2]
[406234407,1771647042082,-5976.0,0.00021411,2]
[406234408,1771647042091,-169.92,0.0002149,2]
[406234409,1771647042101,-1000.0,0.00021777,2]
[406234410,1771647042111,-2000.0,0.000218,7]
[406234411,1771647042120,-400.0,0.000219,7]
[406234412,1771647042129,-5000.0,0.00021918,2]
[406234413,1771647042148,-23936.6738029,0.00021934,2]
[406234414,1771647042158,-447.07841681,0.00021999,2]
[406234415,1771647042167,-686.02,0.00021999,2]
[406234416,1771647042176,-523.84,0.00022,7]
[406234417,1771647042186,-16738.99,0.00022,2]
[406234418,1771647042195,-6546.0402917,0.00022107,2]
[406234419,1771647042204,-387.0,0.00022127,2]
[406234420,1771647042213,-318.044734,0.00022191,30]
[406234421,1771647042223,-686.02,0.00022499,2]
[406234422,1771647042232,-686.02,0.00022499,2]
[406234423,1771647042242,-686.02,0.00022499,2]
[406234424,1771647042252,-686.02,0.00022499,2]
[406234425,1771647042261,-686.09377918,0.00022499,2]
[406234426,1771647042270,-4609.0,0.00022499,2]
[406234427,1771647042279,-222.55097441,0.00022622,10]
[406234428,1771647042288,-630.71842156,0.00022622,10]
[406234429,1771647042298,-3300.0,0.000228,8]
[406234430,1771647042307,-168.51600304,0.00022864,2]
[406234431,1771647042315,-600.0,0.000229,8]
[406234432,1771647042324,-200.0,0.00023,2]
[406234433,1771647042334,-170.00702277,0.00023388,2]
[406234434,1771647042343,-544.28,0.00023406,2]
[406234435,1771647042352,-169.92,0.00023444,2]
[406234436,1771647042361,-160.0,0.00023672,12]
[406234437,1771647042371,-279.0,0.00023672,12]
[406234438,1771647042387,-187.0,0.00023672,12]
[406234439,1771647042399,-1000.0,0.00023757,2]
[406234440,1771647042411,-1422.04556703,0.00024021,2]
[406234441,1771647042424,-27709.67182438,0.00024033,2]
[406234442,1771647042436,-214.989076,0.00024108,2]
[406234443,1771647042448,-284.07,0.00024155,2]
[406234444,1771647042460,-904.38096735,0.00024217,2]
[406234445,1771647042471,-150.0,0.00024279,2]
[406234446,1771647042481,-150.0,0.00024279,2]
[406234447,1771647042495,-150.0,0.00024279,2]
[406234448,1771647042506,-150.0,0.00024279,2]
[406234449,1771647042517,-150.0,0.00024279,2]
[406234450,1771647042533,-150.0,0.00024279,2]
[406234451,1771647042544,-150.0,0.00024279,2]
[406234452,1771647042558,-150.0,0.00024279,2]
[406234453,1771647042570,-1039.0,0.00024279,2]
[406234454,1771647042583,-3493.0,0.00024279,2]
[406234455,1771647042596,-618.0,0.00024279,2]
[406234456,1771647042609,-1276.0,0.00024279,2]
[406234457,1771647042623,-5976.0,0.00024411,2]
[406234458,1771647042637,-277.91,0.00024496,30]
[406234459,1771647042649,-523.84,0.000245,7]
[406234460,1771647042661,-1000.0,0.00024658,2]
[406234461,1771647042674,-150.0,0.00024658,2]
[406234462,1771647042690,-1000.0,0.0002467,2]
[406234463,1771647042701,-500.0,0.0002467,2]
[406234464,1771647042711,-200.349807,0.000247,2]
[406234465,1771647042724,-16738.99,0.000247,2]
[406234466,1771647042736,-4721.0,0.00024739,2]
[406234467,1771647042747,-150.0,0.00025,2]
[406234468,1771647042759,-2708.4,0.0002516,2]
[406234469,1771647042772,-152.0,0.00025323,3]
[406234470,1771647042785,-544.28,0.00025747,120]
[406234471,1771647042797,-1000.0,0.0002587,2]
[406234472,1771647042808,-500.0,0.0002587,2]
[406234473,1771647042820,-150.0,0.0002589,2]
[406234474,1771647042831,-216.97896439,0.00026091,2]
[406234475,1771647042845,-387.0,0.00026313,2]
[406234476,1771647042856,-151.00118991,0.00026532,2]
[406234477,1771647042872,-522.0,0.00026667,11]
[406234478,1771647042883,-27709.67182438,0.00026812,2]
[406234479,1771647042895,-500.0,0.00027048,2]
[406234480,1771647042905,-150.0,0.00027185,2]
[406234482,1771647042918,-523.84,0.000272,7]
[406234483,1771647042930,-150.0,0.00027279,2]
[406234484,1771647042941,-150.0,0.00027279,2]
[406234485,1771647042953,-503.266,0.00027279,2]
[406234486,1771647042964,-3493.0,0.00027279,2]
[406234487,1771647042975,-618.0,0.00027279,2]
[406234488,1771647042986,-264.498021,0.00027349,120]
[406234489,1771647042997,-221.18984911,0.00027369,2]
[406234490,1771647043009,-1000.0,0.00027397,20]
[406234491,1771647043020,-150.0,0.00027397,5]
[406234492,1771647043031,-5976.0,0.00027411,2]
[406234493,1771647043041,-151.00118991,0.00027637,2]
[406234494,1771647043055,-150.96509003,0.00027945,5]
[406234495,1771647043066,-11000.0,0.00028,30]
[406234496,1771647043078,-544.28,0.00028088,120]
[406234497,1771647043089,-1422.04556703,0.00028183,2]
[406234498,1771647043100,-277.91,0.00028525,30]
[406234499,1771647043119,-150.0,0.00028544,2]
[406234500,1771647043131,-500.0,0.00028562,8]
[406234501,1771647043143,-500.0,0.00028562,8]
[406234502,1771647043155,-274.81553287,0.00028562,8]
[406234503,1771647043167,-386.77491301,0.00028562,7]
[406234504,1771647043179,-151.00118991,0.00028742,2]
[406234505,1771647043192,-313.09003359,0.00029,120]
[406234506,1771647043202,-2000.0,0.00029,2]
[406234507,1771647043212,-3870.87292203,0.000295,120]
[406234508,1771647043222,-152.0,0.00029524,4]
[406234509,1771647043232,-154.29819465,0.00029524,5]
[406234510,1771647043244,-742.104381,0.00029587,30]
[406234511,1771647043255,-27709.67182438,0.0002959,2]
[406234512,1771647043265,-151.00118991,0.00029848,2]
[406234513,1771647043276,-150.0,0.00029971,2]
[406234514,1771647043287,-150.0,0.0003,120]
[406234515,1771647043300,-177.84768566,0.0003,120]
[406234516,1771647043310,-766.0,0.0003,120]
[406234517,1771647043321,-179.184952,0.00030092,30]
[406234518,1771647043331,-3493.0,0.00030279,2]
[406234519,1771647043340,-618.0,0.00030279,2]
[406234520,1771647043351,-239.09792498,0.00030411,2]
[406234521,1771647043361,-234.867,0.00030411,2]
[406234522,1771647043372,-239.53,0.00030411,120]
[406234523,1771647043383,-210.09,0.000305,30]
[406234524,1771647043394,-216.97896439,0.00030776,2]
[406234525,1771647043405,-151.00118991,0.00030953,2]
[406234526,1771647043417,-500.0,0.00031247,120]
[406234527,1771647043432,-523.84,0.000313,7]
[406234528,1771647043444,-428.53522963,0.00031365,2]
[406234529,1771647043454,-3187.37121813,0.00031365,2]
[406234530,1771647043465,-150.0,0.0003147,2]
[406234531,1771647043475,-215.0,0.00031661,2]
[406234532,1771647043486,-338.0,0.00032,120]
[406234533,1771647043495,-1000.0,0.00032,120]
[406234534,1771647043505,-1000.0,0.00032,120]
[406234535,1771647043515,-1000.0,0.00032,120]
[406234536,1771647043529,-160.0,0.00032,120]
[406234537,1771647043542,-151.00118991,0.00032059,2]
[406234538,1771647043554,-1110.0,0.000321,30]
[406234539,1771647043564,-525.0,0.000321,30]
[406234540,1771647043577,-1422.04556703,0.00032345,2]
[406234541,1771647043590,-27709.67182438,0.00032369,2]
[406234542,1771647043603,-277.91,0.00032554,30]
[406234543,1771647043615,-2000.0,0.000327,2]
[406234544,1771647043628,-215.0,0.00032822,2]
[406234545,1771647043642,-268.62,0.000329,14]
[406234546,1771647043654,-1201.89,0.000329,2]
[406234547,1771647043665,-398.13,0.000329,14]
[406234548,1771647043677,-210.09,0.00033,30]
[406234549,1771647043688,-151.0,0.00033,14]
[406234550,1771647043699,-150.0,0.00033043,2]
[406234551,1771647043711,-151.00118991,0.00033164,2]
[406234552,1771647043721,-614.213,0.00033279,2]
[406234553,1771647043732,-200.0,0.00034,120]
[406234554,1771647043744,-151.00118991,0.0003427,2]
[406234555,1771647043755,-151.0,0.00034521,30]
[406234556,1771647043766,-150.0,0.00034696,2]
[406234557,1771647043778,-904.38096735,0.00034797,2]
[406234558,1771647043789,-1000.0,0.00035,120]
[406234559,1771647043800,-1000.0,0.00035,120]
[406234560,1771647043817,-170.0,0.00035,30]
[406234561,1771647043832,-500.0,0.00035145,120]
[406234562,1771647043845,-27709.67182438,0.00035147,2]
[406234563,1771647043857,-1201.89,0.000352,2]
[406234564,1771647043872,-398.13,0.000353,14]
[406234565,1771647043885,-151.00118991,0.00035375,2]
[406234566,1771647043899,-216.97896439,0.0003546,2]
[406234567,1771647043912,-210.09,0.000355,30]
[406234568,1771647043924,-253.00517092,0.00035616,7]
[406234569,1771647043937,-200.0,0.00036,120]
[406234570,1771647043948,-153.0,0.00036247,30]
[406234571,1771647043960,-268.62,0.000364,14]
[406234572,1771647043971,-2000.0,0.000364,2]
[406234573,1771647043983,-150.0,0.0003643,2]
[406234574,1771647043995,-151.00118991,0.00036481,2]
[406234575,1771647044007,-1201.89,0.000365,2]
[406234576,1771647044024,-1422.04556703,0.00036507,2]
[406234577,1771647044035,-277.91,0.00036583,30]
[406234578,1771647044046,-16738.99,0.000366,14]
[406234579,1771647044057,-248.71350372,0.00036621,7]
[406234580,1771647044068,-398.13,0.000367,14]
[406234581,1771647044080,-500.0,0.000368,120]
[406234582,1771647044092,-210.09,0.000368,30]
[406234583,1771647044105,-2708.4,0.00036941,2]
[406234584,1771647044117,-1000.0,0.00036976,14]
[406234585,1771647044127,-871.08983601,0.00037,30]
[406234586,1771647044138,-258.31527199,0.000372,120]
[406234587,1771647044149,-258.31527198,0.000372,120]
[406234588,1771647044160,-258.31527198,0.000372,120]
[406234589,1771647044175,-500.0,0.00037245,120]
[406234590,1771647044188,-1000.0,0.0003725,14]
[406234593,1771647044200,-522.0,0.00037333,21]
[406234595,1771647044211,-258.31527198,0.0003742,120]
[406234597,1771647044223,-1000.0,0.00037524,14]
[406234599,1771647044234,-151.00118991,0.00037586,2]
[406234601,1771647044246,-1000.0,0.00037798,14]
[406234604,1771647044257,-16738.99,0.000378,14]
[406234606,1771647044269,-27709.67182438,0.00037926,2]
[406234608,1771647044281,-815.97958483,0.00038,120]
[406234610,1771647044293,-300.0,0.00038,120]
[406234612,1771647044304,-1000.0,0.00038072,14]
[406234613,1771647044315,-268.62,0.000381,14]
[406234614,1771647044327,-150.0,0.00038252,2]
[406234615,1771647044339,-1201.89,0.000383,2]
[406234616,1771647044350,-1999.0,0.00038356,120]
[406234617,1771647044361,-13943.07,0.00038356,30]
[406234618,1771647044372,-398.13,0.000384,14]
[406234619,1771647044384,-152.85417942,0.00038646,3]
[406234620,1771647044395,-151.00118991,0.00038692,2]
[406234621,1771647044406,-994.3119,0.00038888,30]
[406234622,1771647044417,-2058.34232384,0.00038904,120]
[406234623,1771647044428,-260.84205391,0.00038904,5]
[406234625,1771647044439,-5000.0,0.00039757,30]
[406234627,1771647044450,-501.06724534,0.00039772,30]
[406234629,1771647044460,-500.0,0.00039772,30]
[406234631,1771647044471,-500.0,0.00039772,30]
[406234633,1771647044482,-500.0,0.00039772,30]
[406234634,1771647044493,-500.98925879,0.00039772,30]
[406234635,1771647044504,-500.0,0.00039772,30]
[406234636,1771647044516,-500.0,0.00039772,30]
[406234637,1771647044530,-500.0,0.00039772,30]
[406234638,1771647044545,-500.0,0.00039772,30]
[406234639,1771647044557,-500.0,0.00039772,30]
[406234640,1771647044568,-500.0,0.00039772,30]
[406234641,1771647044580,-500.0,0.00039772,30]
[406234642,1771647044592,-500.0,0.00039772,30]
[406234643,1771647044604,-500.0,0.00039772,30]
[406234644,1771647044615,-500.0,0.00039772,30]
[406234645,1771647044628,-500.0,0.00039772,30]
[406234646,1771647044640,-500.0,0.00039772,30]
[406234647,1771647044653,-500.0,0.00039772,30]
[406234648,1771647044664,-500.0,0.00039772,30]
[406234649,1771647044675,-500.0,0.00039772,30]
[406234650,1771647044685,-500.0,0.00039772,30]
[406234651,1771647044696,-500.0,0.00039772,30]
[406234652,1771647044708,-500.0,0.00039772,30]
[406234653,1771647044720,-500.0,0.00039772,30]
[406234654,1771647044731,-1100.0,0.00039772,30]
[406234655,1771647044744,-500.0,0.00039772,30]
[406234656,1771647044754,-500.0,0.00039772,30]
[406234657,1771647044767,-500.0,0.00039772,30]
[406234658,1771647044778,-1100.0,0.00039772,30]
[406234659,1771647044791,-500.0,0.00039772,30]
[406234660,1771647044803,-500.0,0.00039772,30]
[406234661,1771647044813,-500.0,0.00039772,30]
[406234662,1771647044824,-500.0,0.00039772,30]
[406234663,1771647044834,-1100.0,0.00039772,30]
[406234664,1771647044844,-500.0,0.00039772,30]
[406234665,1771647044855,-500.0,0.00039772,30]
[406234666,1771647044865,-500.0,0.00039772,30]
[406234667,1771647044876,-500.0,0.00039772,30]
[406234668,1771647044886,-500.0,0.00039772,30]
[406234669,1771647044896,-1100.0,0.00039772,30]
[406234670,1771647044910,-500.0,0.00039772,30]
[406234671,1771647044922,-500.0,0.00039772,30]
[406234672,1771647044933,-500.0,0.00039772,30]
[406234673,1771647044943,-571.11565887,0.00039772,30]
[406234674,1771647044954,-1100.0,0.00039772,30]
[406234675,1771647044964,-500.0,0.00039772,30]
[406234676,1771647044975,-500.0,0.00039772,30]
[406234677,1771647044986,-830.86737984,0.00039772,30]
[406234678,1771647044997,-500.0,0.00039772,30]
[406234679,1771647045007,-1100.0,0.00039772,30]
[406234680,1771647045018,-500.0,0.00039772,30]
[406234681,1771647045028,-500.0,0.00039772,30]
[406234682,1771647045038,-500.0,0.00039772,30]
[406234683,1771647045048,-500.0,0.00039772,30]
[406234684,1771647045059,-1100.0,0.00039772,30]
[406234685,1771647045069,-500.0,0.00039772,30]
[406234686,1771647045080,-500.0,0.00039772,30]
[406234687,1771647045090,-1100.0,0.00039772,30]
[406234688,1771647045100,-500.0,0.00039772,30]
[406234689,1771647045111,-500.0,0.00039772,30]
[406234690,1771647045121,-500.0,0.00039772,30]
[406234691,1771647045131,-500.0,0.00039772,30]
[406234692,1771647045141,-1100.0,0.00039772,30]
[406234693,1771647045151,-500.0,0.00039772,30]
[406234694,1771647045162,-500.0,0.00039772,30]
[406234695,1771647045172,-500.0,0.00039772,30]
[406234696,1771647045183,-500.0,0.00039772,30]
[406234697,1771647045193,-500.0,0.00039772,30]
[406234698,1771647045204,-1100.0,0.00039772,30]
[406234699,1771647045214,-500.0,0.00039772,30]
[406234700,1771647045224,-500.0,0.00039772,30]
[406234701,1771647045235,-500.0,0.00039772,30]
[406234702,1771647045245,-1100.0,0.00039772,30]
[406234703,1771647045255,-500.0,0.00039772,30]
[406234704,1771647045265,-500.0,0.00039772,30]
[406234705,1771647045275,-500.0,0.00039772,30]
[406234706,1771647045287,-500.0,0.00039772,30]
[406234707,1771647045298,-500.0,0.00039772,30]
[406234708,1771647045308,-500.0,0.00039772,30]
[406234709,1771647045318,-500.0,0.00039772,30]
[406234710,1771647045328,-500.0,0.00039772,30]
[406234711,1771647045338,-500.0,0.00039772,30]
[406234712,1771647045348,-500.0,0.00039772,30]
[406234713,1771647045357,-500.0,0.00039772,30]
[406234714,1771647045367,-500.0,0.00039772,30]
[406234715,1771647045377,-500.0,0.00039772,30]
[406234716,1771647045387,-500.0,0.00039772,30]
[406234717,1771647045398,-500.0,0.00039772,30]
[406234718,1771647045408,-792.34256332,0.00039772,30]
[406234719,1771647045418,-1100.0,0.00039772,30]
[406234720,1771647045428,-500.0,0.00039772,30]
[406234721,1771647045438,-500.0,0.00039772,30]
[406234722,1771647045775,-500.0,0.00039772,30]
[406234723,1771647045785,-500.0,0.00039772,30]
[406234724,1771647045795,-500.0,0.00039772,30]
[406234725,1771647045804,-1100.0,0.00039772,30]
[406234726,1771647045813,-500.0,0.00039772,30]
[406234727,1771647045822,-500.0,0.00039772,30]
[406234728,1771647045831,-500.0,0.00039772,30]
[406234729,1771647045840,-500.0,0.00039772,30]
[406234730,1771647045849,-500.0,0.00039772,30]
[406234731,1771647045858,-1100.0,0.00039772,30]
[406234732,1771647045869,-889.732786,0.00039772,30]
[406234733,1771647045880,-1100.0,0.00039772,30]
[406234734,1771647045891,-500.0,0.00039772,30]
[406234735,1771647045902,-500.0,0.00039772,30]
[406234736,1771647045913,-500.0,0.00039772,30]
[406234737,1771647045925,-500.0,0.00039772,30]
[406234738,1771647045935,-500.0,0.00039772,30]
[406234739,1771647045948,-500.0,0.00039772,30]
[406234740,1771647045957,-500.0,0.00039772,30]
[406234741,1771647045968,-500.0,0.00039772,30]
[406234742,1771647045978,-1100.0,0.00039772,30]
[406234743,1771647045987,-500.0,0.00039772,30]
[406234744,1771647045997,-500.0,0.00039772,30]
[406234745,1771647046007,-918.40902476,0.00039772,30]
[406234746,1771647046017,-500.0,0.00039772,30]
[406234747,1771647046027,-500.0,0.00039772,30]
[406234748,1771647046037,-1100.0,0.00039772,30]
[406234749,1771647046047,-507.58210167,0.00039772,30]
[406234750,1771647046056,-500.0,0.00039772,30]
[406234751,1771647046066,-1100.0,0.00039772,30]
[406234752,1771647046075,-500.0,0.00039772,30]
[406234753,1771647046084,-500.0,0.00039772,30]
[406234754,1771647046095,-500.0,0.00039772,30]
[406234755,1771647046104,-650.51777425,0.00039772,30]
[406234756,1771647046116,-1100.0,0.00039772,30]
[406234757,1771647046126,-500.0,0.00039772,30]
[406234758,1771647046135,-500.0,0.00039772,30]
[406234759,1771647046144,-951.95169886,0.00039772,30]
[406234761,1771647046153,-1100.0,0.00039772,30]
[406234762,1771647046162,-500.0,0.00039772,30]
[406234763,1771647046171,-1100.0,0.00039772,30]
[406234764,1771647046180,-500.0,0.00039772,30]
[406234765,1771647046189,-1100.0,0.00039772,30]
[406234766,1771647046199,-500.0,0.00039772,30]
[406234767,1771647046207,-500.0,0.00039772,30]
[406234768,1771647046217,-1100.0,0.00039772,30]
[406234769,1771647046226,-500.0,0.00039772,30]
[406234770,1771647046235,-500.0,0.00039772,30]
[406234771,1771647046244,-1100.0,0.00039772,30]
[406234772,1771647046253,-500.0,0.00039772,30]
[406234773,1771647046262,-1100.0,0.00039772,30]
[406234774,1771647046272,-500.0,0.00039772,30]
[406234775,1771647046281,-1121.87998365,0.00039772,30]
[406234776,1771647046290,-500.0,0.00039772,30]
[406234777,1771647046299,-500.0,0.00039772,30]
[406234778,1771647046309,-500.0,0.00039772,30]
[406234779,1771647046318,-546.68651828,0.00039772,30]
[406234780,1771647046327,-151.0,0.00039772,120]
[406234781,1771647046337,-151.0,0.00039772,120]
[406234782,1771647046345,-166.670398,0.00039772,90]
[406234783,1771647046355,-560.559874,0.00039772,120]
[406234784,1771647046364,-560.559874,0.00039772,120]
[406234785,1771647046374,-211.424329,0.00039772,7]
[406234786,1771647046383,-560.559874,0.00039772,120]
[406234787,1771647046392,-211.424329,0.00039772,7]
[406234788,1771647046402,-560.559874,0.00039772,120]
[406234789,1771647046415,-211.424329,0.00039772,7]
[406234790,1771647046424,-211.424329,0.00039772,7]
[406234791,1771647046434,-151.00118998,0.00039797,2]
[406234792,1771647046444,-523.84,0.000398,14]
[406234793,1771647046453,-151.0,0.00039871,90]
[406234794,1771647046462,-520.07,0.0004,120]
[406234795,1771647046472,-268.62,0.0004,14]
[406234796,1771647046481,-151.0,0.0004,120]
[406234797,1771647046490,-151.0,0.0004,120]
[406234798,1771647046499,-504.49,0.0004,120]
[406234799,1771647046508,-300.0,0.0004,120]
[406234800,1771647046517,-245.05,0.0004,120]
[406234801,1771647046532,-346.05,0.0004,120]
[406234802,1771647046541,-650.42,0.0004,120]
[406234803,1771647046550,-160.339973,0.0004,120]
[406234804,1771647046559,-2000.0,0.000401,2]
[406234805,1771647046569,-216.97896439,0.00040145,2]
[406234806,1771647046578,-150.0,0.00040165,2]